fUSD/lending_fUSD_20250414
["ID","MTS","AMOUNT","RATE_DAILY","PERIOD"]
[358007336,1744651848732,-500.0,0.00017887,2]
[358007337,1744651848741,-554.43946847,0.00017887,2]
[358007339,1744651848751,-500.0,0.00017887,2]
[358007341,1744651848760,-500.0,0.00017887,2]
[358007343,1744651848770,-500.0,0.00017887,2]
[358007345,1744651848779,-468.01068386,0.00017887,2]
[358007347,1744651848789,-500.0,0.00017887,2]
[358007349,1744651848798,-500.0,0.00017887,2]
[358007351,1744651848806,-500.0,0.00017887,2]
[358007353,1744651848816,-500.0,0.00017887,2]
[358007355,1744651848825,-500.0,0.00017887,2]
[358007357,1744651848836,-500.0,0.00017887,2]
[358007359,1744651848845,-500.0,0.00017887,2]
[358007361,1744651848855,-500.0,0.00017887,2]
[358007363,1744651848864,-500.0,0.00017887,2]
[358007365,1744651848874,-500.0,0.00017887,2]
[358007366,1744651848884,-500.0,0.00017887,2]
[358007368,1744651848893,-500.0,0.00017887,2]
[358007370,1744651848903,-500.0,0.00017887,2]
[358007372,1744651848913,-500.0,0.00017887,2]
[358007374,1744651848922,-500.0,0.00017887,2]
[358007376,1744651848932,-500.0,0.00017887,2]
[358007378,1744651848941,-500.0,0.00017887,2]
[358007380,1744651848951,-501.61225506,0.00017887,2]
[358007382,1744651848961,-1104.75,0.00017887,2]
[358007384,1744651848970,-1104.75,0.00017887,2]
[358007386,1744651848979,-1104.75,0.00017887,2]
[358007388,1744651848988,-1104.75,0.00017887,2]
[358007390,1744651848998,-505.71297616,0.00017887,2]
[358007392,1744651849007,-783.35,0.00017887,2]
[358007393,1744651849016,-783.35,0.00017887,2]
[358007395,1744651849027,-783.35,0.00017887,2]
[358007397,1744651849038,-783.35,0.00017887,2]
[358007399,1744651849048,-500.0,0.00017887,2]
[358007401,1744651849058,-500.0,0.00017887,2]
[358007403,1744651849068,-500.0,0.00017887,2]
[358007405,1744651849078,-500.0,0.00017887,2]
[358007407,1744651849089,-500.0,0.00017887,2]
[358007409,1744651849099,-500.0,0.00017887,2]
[358007411,1744651849109,-500.0,0.00017887,2]
[358007413,1744651849119,-150.75,0.00017887,2]
[358007415,1744651849128,-398.0,0.00017887,2]
[358007417,1744651849138,-500.0,0.00017887,2]
[358007419,1744651849148,-500.0,0.00017887,2]
[358007421,1744651849160,-500.0,0.00017887,2]
[358007423,1744651849170,-500.0,0.00017887,2]
[358007425,1744651849179,-500.0,0.00017887,2]
[358007427,1744651849189,-500.0,0.00017887,2]
[358007429,1744651849199,-500.0,0.00017887,2]
[358007431,1744651849209,-579.66172727,0.00017887,2]
[358007433,1744651849219,-500.0,0.00017887,2]
[358007434,1744651849230,-500.0,0.00017887,2]
[358007436,1744651849239,-500.0,0.00017887,2]
[358007438,1744651849248,-500.0,0.00017887,2]
[358007440,1744651849258,-500.0,0.00017887,2]
[358007442,1744651849268,-500.0,0.00017887,2]
[358007444,1744651849279,-500.0,0.00017887,2]
[358007446,1744651849289,-500.0,0.00017887,2]
[358007448,1744651849299,-604.71640579,0.00017887,2]
[358007450,1744651849309,-500.0,0.00017887,2]
[358007452,1744651849319,-500.0,0.00017887,2]
[358007454,1744651849329,-500.0,0.00017887,2]
[358007456,1744651849340,-500.0,0.00017887,2]
[358007458,1744651849351,-500.0,0.00017887,2]
[358007460,1744651849360,-500.0,0.00017887,2]
[358007461,1744651849370,-500.0,0.00017887,2]
[358007462,1744651849380,-500.0,0.00017887,2]
[358007463,1744651849390,-500.0,0.00017887,2]
[358007464,1744651849399,-500.0,0.00017887,2]
[358007465,1744651849412,-500.0,0.00017887,2]
[358007466,1744651849421,-500.0,0.00017887,2]
[358007467,1744651849430,-500.0,0.00017887,2]
[358007468,1744651849440,-500.0,0.00017887,2]
[358007469,1744651849450,-500.0,0.00017887,2]
[358007470,1744651849461,-500.0,0.00017887,2]
[358007471,1744651849471,-500.0,0.00017887,2]
[358007472,1744651849481,-500.0,0.00017887,2]
[358007473,1744651849491,-500.0,0.00017887,2]
[358007474,1744651849500,-500.0,0.00017887,2]
[358007476,1744651849509,-500.0,0.00017887,2]
[358007478,1744651849519,-500.0,0.00017887,2]
[358007480,1744651849528,-500.0,0.00017887,2]
[358007482,1744651849538,-500.0,0.00017887,2]
[358007484,1744651849548,-500.0,0.00017887,2]
[358007486,1744651849557,-500.0,0.00017887,2]
[358007488,1744651849567,-501.87108827,0.00017887,2]
[358007490,1744651849577,-500.0,0.00017887,2]
[358007492,1744651849588,-500.0,0.00017887,2]
[358007494,1744651849598,-500.0,0.00017887,2]
[358007496,1744651849608,-500.0,0.00017887,2]
[358007498,1744651849618,-500.0,0.00017887,2]
[358007500,1744651849628,-500.0,0.00017887,2]
[358007502,1744651849637,-500.0,0.00017887,2]
[358007503,1744651849647,-500.0,0.00017887,2]
[358007506,1744651849657,-500.0,0.00017887,2]
[358007507,1744651849666,-500.0,0.00017887,2]
[358007509,1744651849676,-500.0,0.00017887,2]
[358007511,1744651849685,-500.0,0.00017887,2]
[358007513,1744651849694,-500.0,0.00017887,2]
[358007515,1744651849705,-500.0,0.00017887,2]
[358007517,1744651849725,-322.01364155,0.00017887,2]
[358007519,1744651849735,-500.0,0.00017887,2]
[358007521,1744651849747,-500.0,0.00017887,2]
[358007523,1744651849759,-500.0,0.00017887,2]
[358007525,1744651849771,-578.55,0.00017887,2]
[358007527,1744651849782,-500.0,0.00017887,2]
[358007529,1744651849792,-500.0,0.00017887,2]
[358007531,1744651849803,-243.21,0.00017887,2]
[358007533,1744651849812,-500.0,0.00017887,2]
[358007535,1744651849822,-546.33,0.00017887,2]
[358007537,1744651849831,-546.33,0.00017887,2]
[358007539,1744651849842,-546.33,0.00017887,2]
[358007541,1744651849852,-546.33,0.00017887,2]
[358007543,1744651849861,-546.33,0.00017887,2]
[358007545,1744651849870,-500.0,0.00017887,2]
[358007547,1744651849880,-500.0,0.00017887,2]
[358007549,1744651849890,-500.0,0.00017887,2]
[358007551,1744651849899,-500.0,0.00017887,2]
[358007553,1744651849909,-500.0,0.00017887,2]
[358007555,1744651849918,-500.0,0.00017887,2]
[358007557,1744651849928,-500.0,0.00017887,2]
[358007558,1744651849937,-500.0,0.00017887,2]
[358007560,1744651849947,-592.1059884,0.00017887,2]
[358007562,1744651849956,-500.0,0.00017887,2]
[358007564,1744651849966,-500.0,0.00017887,2]
[358007566,1744651849975,-500.0,0.00017887,2]
[358007568,1744651849984,-500.0,0.00017887,2]
[358007570,1744651849994,-500.0,0.00017887,2]
[358007572,1744651850003,-500.0,0.00017887,2]
[358007574,1744651850012,-500.0,0.00017887,2]
[358007576,1744651850022,-500.0,0.00017887,2]
[358007578,1744651850031,-500.0,0.00017887,2]
[358007580,1744651850040,-500.0,0.00017887,2]
[358007582,1744651850050,-500.0,0.00017887,2]
[358007584,1744651850059,-500.0,0.00017887,2]
[358007586,1744651850068,-500.0,0.00017887,2]
[358007587,1744651850077,-500.0,0.00017887,2]
[358007589,1744651850087,-500.0,0.00017887,2]
[358007591,1744651850096,-500.0,0.00017887,2]
[358007593,1744651850106,-500.0,0.00017887,2]
[358007595,1744651850115,-500.0,0.00017887,2]
[358007597,1744651850124,-677.67,0.00017887,2]
[358007599,1744651850133,-500.0,0.00017887,2]
[358007601,1744651850142,-500.0,0.00017887,2]
[358007603,1744651850152,-500.0,0.00017887,2]
[358007605,1744651850161,-500.0,0.00017887,2]
[358007607,1744651850171,-500.0,0.00017887,2]
[358007609,1744651850180,-500.0,0.00017887,2]
[358007611,1744651850190,-500.0,0.00017887,2]
[358007613,1744651850199,-500.0,0.00017887,2]
[358007615,1744651850208,-199.7853455,0.00017887,2]
[358007617,1744651850217,-500.0,0.00017887,2]
[358007619,1744651850226,-500.0,0.00017887,2]
[358007621,1744651850236,-500.0,0.00017887,2]
[358007623,1744651850245,-500.0,0.00017887,2]
[358007625,1744651850254,-500.0,0.00017887,2]
[358007627,1744651850263,-500.0,0.00017887,2]
[358007629,1744651850273,-623.21727493,0.00017887,2]
[358007631,1744651850283,-500.0,0.00017887,2]
[358007633,1744651850292,-500.0,0.00017887,2]
[358007635,1744651850301,-500.0,0.00017887,2]
[358007637,1744651850311,-500.0,0.00017887,2]
[358007639,1744651850320,-515.17956097,0.00017887,2]
[358007641,1744651850330,-500.0,0.00017887,2]
[358007643,1744651850340,-500.0,0.00017887,2]
[358007645,1744651850350,-500.0,0.00017887,2]
[358007647,1744651850359,-500.0,0.00017887,2]
[358007649,1744651850369,-500.0,0.00017887,2]
[358007651,1744651850379,-500.0,0.00017887,2]
[358007653,1744651850389,-152.622454,0.00017887,2]
[358007655,1744651850399,-270.6567,0.00017887,2]
[358007657,1744651850413,-791.49,0.00017887,2]
[358007660,1744651850423,-500.0,0.00017887,2]
[358007661,1744651850432,-791.49,0.00017887,2]
[358007664,1744651850442,-791.49,0.00017887,2]
[358007666,1744651850453,-791.49,0.00017887,2]
[358007667,1744651850462,-500.0,0.00017887,2]
[358007669,1744651850472,-500.0,0.00017887,2]
[358007672,1744651850484,-270.6567,0.00017887,2]
[358007674,1744651850495,-151.0,0.00017887,2]
[358007675,1744651850504,-500.0,0.00017887,2]
[358007678,1744651850514,-500.0,0.00017887,2]
[358007680,1744651850524,-151.0,0.00017887,2]
[358007681,1744651850533,-500.0,0.00017887,2]
[358007684,1744651850543,-2305.43,0.00017887,2]
[358007686,1744651850552,-2305.43,0.00017887,2]
[358007688,1744651850561,-500.0,0.00017887,2]
[358007689,1744651850570,-2305.43,0.00017887,2]
[358007691,1744651850579,-1646.63076944,0.00017887,2]
[358008010,1744651870704,-30.56257546,0.00017786,2]
[358008011,1744651870716,-573.14901767,0.00017786,2]
[358008012,1744651870725,-500.0,0.00017874,2]
[358008013,1744651870735,-500.0,0.00017884,2]
[358008014,1744651870744,-490.47131016,0.00017885,2]
[358008015,1744651870754,-500.0,0.00017885,2]
[358008016,1744651870763,-569.55800729,0.00017885,2]
[358008017,1744651870772,-658.79923056,0.00017887,2]
[358008018,1744651870782,-151.0,0.00017887,2]
[358008019,1744651870791,-151.0,0.00017887,2]
[358008020,1744651870801,-151.0,0.00017887,2]
[358008021,1744651870810,-500.0,0.00017887,2]
[358008022,1744651870819,-772.27,0.00017887,2]
[358008023,1744651870829,-500.0,0.00017887,2]
[358008024,1744651870839,-500.0,0.00017887,2]
[358008025,1744651870848,-451.89953613,0.00017887,2]
[358008026,1744651870861,-48.10046387,0.00017887,2]
[358008027,1744651870871,-245.27155953,0.00017887,2]
[358008028,1744651870898,-254.72844047,0.00017887,2]
[358008029,1744651870908,-500.0,0.00017887,2]
[358008030,1744651870917,-500.0,0.00017887,2]
[358008031,1744651870927,-263.19399314,0.00017887,2]
[358008032,1744651871124,-500.0,0.00017874,2]
[358008033,1744651871133,-177.46218146,0.00017885,2]
[358008034,1744651871144,-500.0,0.00017886,2]
[358008035,1744651871153,-575.91,0.00017886,2]
[358008036,1744651871164,-500.0,0.00017886,2]
[358008037,1744651871173,-500.0,0.00017886,2]
[358008038,1744651871183,-500.0,0.00017886,2]
[358008039,1744651871192,-146.00584717,0.00017887,2]
[358008040,1744651871203,-90.80015969,0.00017887,2]
[358008041,1744651871212,-500.0,0.00017887,2]
[358008042,1744651871221,-1117.61626857,0.00017887,2]
[358008043,1744651871232,-270.52707997,0.00017887,2]
[358008044,1744651871243,-1189.91111096,0.00017887,2]
[358008045,1744651871254,-1834.4555405,0.00017887,2]
[358008046,1744651871264,-4412.51,0.00017887,2]
[358008047,1744651871274,-4412.51,0.00017887,2]
[358008048,1744651871283,-4412.51,0.00017887,2]
[358008049,1744651871293,-151.0,0.00017887,2]
[358008050,1744651871302,-500.0,0.00017887,2]
[358008051,1744651871310,-500.0,0.00017887,2]
[358008052,1744651871320,-500.0,0.00017887,2]
[358008053,1744651871329,-500.0,0.00017887,2]
[358008054,1744651871338,-500.0,0.00017887,2]
[358008055,1744651871348,-500.0,0.00017887,2]
[358008056,1744651871360,-500.0,0.00017887,2]
[358008057,1744651871370,-87389.64,0.00017887,2]
[358008058,1744651871380,-500.0,0.00017887,2]
[358008059,1744651871389,-151.0,0.00017887,2]
[358008060,1744651871400,-500.0,0.00017887,2]
[358008061,1744651871410,-1380.29,0.00017887,2]
[358008062,1744651871423,-500.0,0.00017887,2]
[358008063,1744651871433,-500.0,0.00017887,2]
[358008064,1744651871443,-378.21842154,0.00017887,2]
[358008065,1744651871525,-203.26157846,0.00017887,2]
[358008066,1744651871535,-82.30508131,0.00017887,2]
[358008067,1744651871551,-417.69491869,0.00017887,2]
[358008068,1744651871560,-340.44506131,0.00017887,2]
[358008069,1744651871580,-500.0,0.00017874,2]
[358008070,1744651871591,-159.55493869,0.00017887,2]
[358008071,1744651871600,-222.88867473,0.00017887,2]
[358008072,1744651936013,509.64,0.00016937,2]
[358008073,1744651962402,200.0,0.0001687,7]
[358008074,1744651988988,166.41,0.00017376,2]
[358008075,1744652006929,2475.59,0.0001691,2]
[358008076,1744652008403,1650.63,0.0001691,2]
[358008080,1744652073655,200.0,0.00016906,2]
[358008081,1744652093757,206.54678372,0.000265,120]
[358008082,1744652137958,1000.0,0.00017774,2]
[358008083,1744652285076,1903.91835247,0.00016868,2]
[358008084,1744652285097,10000.0,0.00016868,2]
[358008085,1744652285117,10000.0,0.00016868,2]
[358008086,1744652285137,10000.0,0.00016868,2]
[358008087,1744652285157,1183.85164753,0.00016868,2]
[358008088,1744652305191,353.36,0.0001685,2]
[358008089,1744652317647,201.21,0.0001685,2]
[358008090,1744652341913,244.97,0.0001348,2]
[358008091,1744652370318,915.64,0.00014927,2]
[358008092,1744652370596,915.64,0.0001719,2]
[358008093,1744652447719,6185.32835247,0.00016849,2]
[358008094,1744652447741,10000.0,0.00016849,2]
[358008095,1744652447763,7714.67164753,0.00016849,2]
[358008096,1744652595274,155.07,0.00016831,2]
[358008097,1744652616873,150.0,0.00016844,2]
[358008098,1744652625109,162.74,0.0001685,2]
[358008099,1744652648246,278.97,0.00016862,2]
[358008100,1744652705748,150.0,0.00017504,2]
[358008101,1744652734499,1177.6,0.00016842,2]
[358008102,1744652813727,210.94835247,0.00016795,2]
[358008103,1744652813754,7107.57164753,0.00016795,2]
[358008104,1744652820360,1000.0,0.00016795,2]
[358008105,1744652838118,1892.42835247,0.00016808,2]
[358008106,1744652838146,7933.44164753,0.00016808,2]
[358008107,1744652897031,880.0,0.00017,2]
[358008108,1744652930264,200.0,0.00016804,7]
[358008109,1744652954191,-473.47817987,0.00017534,2]
[358008110,1744652954214,-257.8371891,0.00017581,2]
[358008111,1744652954236,-1000.0,0.000176,2]
[358008112,1744652954258,-473.47817987,0.00017616,2]
[358008113,1744652954280,-473.47817987,0.00017671,2]
[358008114,1744652954301,-150.0,0.00017671,2]
[358008115,1744652954322,-438.1088,0.00017674,2]
[358008116,1744652954344,-150.66252211,0.00017674,2]
[358008117,1744652954364,-565.86452234,0.00017685,2]
[358008118,1744652954385,-150.66252204,0.00017706,2]
[358008119,1744652954406,-150.66252204,0.00017738,2]
[358008120,1744652954428,-473.47817987,0.00017753,2]
[358008121,1744652954450,-150.66252204,0.0001777,2]
[358008122,1744652954473,-300.0,0.00017773,2]
[358008123,1744652954493,-163.0,0.00017773,2]
[358008124,1744652954515,-10459.9538848,0.00017773,2]
[358008125,1744652954535,-93111.11912684,0.00017774,2]
[358008126,1744652974682,-250.0,0.00017516,2]
[358008127,1744652998619,1132.0,0.00017674,2]
[358008128,1744653008456,168.24,0.0001737,2]
[358008134,1744653031618,-828.67032862,0.00017674,2]
[358008135,1744653031630,-281.99999996,0.00017674,2]
[358008136,1744653031645,-257.32967142,0.00017674,2]
[358008137,1744653031655,-300.0,0.00017773,2]
[358008138,1744653031665,-41.89971738,0.00017774,2]
[358008139,1744653031677,-3018.50046572,0.00017774,2]
[358008140,1744653031693,-3502.46317791,0.00017774,2]
[358008141,1744653031773,-6354.547411,0.00017774,2]
[358008142,1744653031786,-1199.03640389,0.00017774,2]
[358008143,1744653031886,-8184.97671707,0.00017774,2]
[358008147,1744653032023,-11500.0,0.00017774,2]
[358008342,1744653037800,-505.7500002,0.00017774,2]
[358008343,1744653037813,-547.70000025,0.00017774,2]
[358008344,1744653037858,-1995.15763119,0.00017774,2]
[358008345,1744653037872,-5223.60000056,0.00017774,2]
[358008346,1744653037885,-1774.1,0.00017774,2]
[358008347,1744653037914,-71855.73324799,0.00017774,2]
[358008348,1744653037925,-223.0,0.00017774,2]
[358008349,1744653037935,-2106.09166436,0.00017774,2]
[358008350,1744653037945,-2106.09166431,0.00017788,2]
[358008351,1744653037955,-2106.09166431,0.00017802,2]
[358008352,1744653037965,-150.66252204,0.00017803,2]
[358008353,1744653037975,-500.0,0.00017808,2]
[358008354,1744653037985,-2106.09166431,0.00017816,2]
[358008355,1744653037995,-2106.09166431,0.0001783,2]
[358008356,1744653038005,-150.66252204,0.00017835,2]
[358008357,1744653038015,-473.47817987,0.00017836,2]
[358008359,1744653038024,-2106.09166431,0.00017843,2]
[358008360,1744653038035,-2106.09166431,0.00017857,2]
[358008361,1744653038044,-150.66252204,0.00017867,2]
[358008362,1744653038054,-1455.09,0.00017871,2]
[358008363,1744653038064,-500.0,0.00017871,2]
[358008364,1744653038074,-500.0,0.00017871,2]
[358008365,1744653038084,-500.0,0.00017871,2]
[358008366,1744653038094,-500.0,0.00017871,2]
[358008367,1744653038103,-500.0,0.00017871,2]
[358008368,1744653038113,-500.0,0.00017871,2]
[358008369,1744653038123,-500.0,0.00017871,2]
[358008371,1744653038133,-500.0,0.00017871,2]
[358008372,1744653038145,-500.0,0.00017871,2]
[358008373,1744653038159,-500.0,0.00017871,2]
[358008374,1744653038169,-2106.09166431,0.00017871,2]
[358008375,1744653038178,-294.14743454,0.00017872,2]
[358008376,1744653038188,-500.0,0.00017872,2]
[358008377,1744653038198,-531.07391024,0.00017872,2]
[358008378,1744653038208,-500.0,0.00017872,2]
[358008379,1744653038218,-507.84848916,0.00017872,2]
[358008380,1744653038227,-500.0,0.00017872,2]
[358008381,1744653038237,-500.0,0.00017872,2]
[358008382,1744653038247,-500.0,0.00017872,2]
[358008383,1744653038258,-500.0,0.00017872,2]
[358008384,1744653038268,-344.10063723,0.00017872,2]
[358008385,1744653038278,-450.27903212,0.00017872,2]
[358008386,1744653038288,-500.0,0.00017872,2]
[358008387,1744653038298,-500.0,0.00017872,2]
[358008388,1744653038309,-500.0,0.00017872,2]
[358008389,1744653038320,-465.55263059,0.00017872,2]
[358008390,1744653038330,-500.0,0.00017872,2]
[358008391,1744653038340,-500.0,0.00017872,2]
[358008392,1744653038350,-500.0,0.00017872,2]
[358008393,1744653038360,-265.74,0.00017872,2]
[358008394,1744653038372,-500.0,0.00017872,2]
[358008395,1744653038382,-500.0,0.00017872,2]
[358008396,1744653038392,-500.0,0.00017872,2]
[358008397,1744653038403,-500.0,0.00017872,2]
[358008398,1744653038416,-500.0,0.00017872,2]
[358008399,1744653038426,-500.0,0.00017872,2]
[358008400,1744653038436,-500.0,0.00017872,2]
[358008401,1744653038446,-515.12422268,0.00017872,2]
[358008402,1744653038456,-500.0,0.00017872,2]
[358008403,1744653038466,-569.42255477,0.00017872,2]
[358008404,1744653038476,-447.09277075,0.00017872,2]
[358008405,1744653038486,-500.0,0.00017872,2]
[358008406,1744653038500,-500.0,0.00017872,2]
[358008407,1744653038510,-500.0,0.00017872,2]
[358008408,1744653038520,-500.0,0.00017872,2]
[358008409,1744653038530,-610.42889467,0.00017872,2]
[358008410,1744653038540,-525.47567986,0.00017872,2]
[358008411,1744653038550,-500.0,0.00017872,2]
[358008412,1744653038561,-520.00437504,0.00017872,2]
[358008413,1744653038571,-500.0,0.00017872,2]
[358008414,1744653038581,-510.49973945,0.00017872,2]
[358008415,1744653038591,-2200.66,0.00017872,2]
[358008416,1744653038601,-500.0,0.00017872,2]
[358008417,1744653038611,-500.0,0.00017872,2]
[358008418,1744653038623,-500.0,0.00017872,2]
[358008419,1744653038634,-500.0,0.00017872,2]
[358008420,1744653038644,-500.0,0.00017872,2]
[358008421,1744653038655,-500.0,0.00017872,2]
[358008422,1744653038665,-500.0,0.00017872,2]
[358008423,1744653038676,-500.0,0.00017872,2]
[358008424,1744653038687,-500.0,0.00017872,2]
[358008425,1744653038698,-500.0,0.00017872,2]
[358008426,1744653038708,-316.24995362,0.00017872,2]
[358008427,1744653038718,-500.0,0.00017872,2]
[358008428,1744653038729,-615.32,0.00017872,2]
[358008429,1744653038740,-500.0,0.00017872,2]
[358008430,1744653038751,-500.0,0.00017872,2]
[358008431,1744653038761,-500.0,0.00017872,2]
[358008432,1744653038772,-500.0,0.00017872,2]
[358008433,1744653038782,-500.0,0.00017872,2]
[358008434,1744653038795,-573.4,0.00017872,2]
[358008435,1744653038807,-295.93970999,0.00017872,2]
[358008436,1744653038817,-500.0,0.00017872,2]
[358008437,1744653038827,-500.0,0.00017872,2]
[358008438,1744653038839,-500.0,0.00017872,2]
[358008439,1744653038852,-500.0,0.00017872,2]
[358008440,1744653038863,-500.0,0.00017872,2]
[358008441,1744653038877,-500.0,0.00017872,2]
[358008442,1744653038890,-500.0,0.00017872,2]
[358008443,1744653038901,-500.0,0.00017872,2]
[358008444,1744653038911,-683.12,0.00017872,2]
[358008445,1744653038921,-500.0,0.00017872,2]
[358008446,1744653038931,-500.0,0.00017872,2]
[358008447,1744653038942,-500.0,0.00017872,2]
[358008448,1744653038952,-546.65487404,0.00017872,2]
[358008449,1744653038962,-500.0,0.00017872,2]
[358008450,1744653038973,-500.0,0.00017872,2]
[358008451,1744653038980,-500.0,0.00017872,2]
[358008452,1744653038987,-228.74032668,0.00017872,2]
[358008453,1744653038997,-500.0,0.00017872,2]
[358008454,1744653039006,-500.0,0.00017872,2]
[358008455,1744653039016,-500.0,0.00017872,2]
[358008456,1744653039025,-500.0,0.00017872,2]
[358008457,1744653039036,-500.0,0.00017872,2]
[358008458,1744653039046,-500.0,0.00017872,2]
[358008459,1744653039057,-500.0,0.00017872,2]
[358008460,1744653039067,-500.0,0.00017872,2]
[358008461,1744653039077,-500.0,0.00017872,2]
[358008462,1744653039087,-500.0,0.00017872,2]
[358008463,1744653039096,-740.09,0.00017872,2]
[358008464,1744653039105,-500.0,0.00017872,2]
[358008465,1744653039114,-500.0,0.00017872,2]
[358008466,1744653039124,-131774.01,0.00017872,2]
[358008467,1744653039134,-255.47010751,0.00017872,2]
[358008468,1744653039143,-500.0,0.00017872,2]
[358008469,1744653039153,-500.0,0.00017872,2]
[358008470,1744653039163,-500.0,0.00017873,2]
[358008471,1744653039173,-500.0,0.00017873,2]
[358008472,1744653039183,-500.0,0.00017873,2]
[358008473,1744653039192,-500.0,0.00017873,2]
[358008474,1744653039202,-500.0,0.00017873,2]
[358008475,1744653039212,-405.92569286,0.00017873,2]
[358008476,1744653039222,-500.0,0.00017873,2]
[358008477,1744653039231,-500.0,0.00017873,2]
[358008478,1744653039241,-500.0,0.00017873,2]
[358008479,1744653039251,-500.0,0.00017873,2]
[358008480,1744653039261,-500.0,0.00017873,2]
[358008481,1744653039272,-500.0,0.00017873,2]
[358008482,1744653039282,-500.0,0.00017873,2]
[358008483,1744653039293,-500.0,0.00017873,2]
[358008484,1744653039302,-500.0,0.00017873,2]
[358008485,1744653039313,-500.0,0.00017873,2]
[358008486,1744653039324,-500.0,0.00017873,2]
[358008487,1744653039334,-500.0,0.00017873,2]
[358008488,1744653039346,-500.0,0.00017873,2]
[358008489,1744653039357,-500.0,0.00017873,2]
[358008490,1744653039367,-500.0,0.00017873,2]
[358008491,1744653039377,-500.0,0.00017873,2]
[358008492,1744653039395,-500.0,0.00017873,2]
[358008493,1744653039408,-500.0,0.00017873,2]
[358008494,1744653039422,-500.0,0.00017873,2]
[358008495,1744653039437,-539.76967029,0.00017873,2]
[358008496,1744653039450,-547.34,0.00017873,2]
[358008497,1744653039463,-500.0,0.00017873,2]
[358008498,1744653039475,-500.0,0.00017873,2]
[358008499,1744653039489,-500.0,0.00017873,2]
[358008500,1744653039501,-500.0,0.00017873,2]
[358008501,1744653039514,-500.0,0.00017873,2]
[358008502,1744653039527,-500.0,0.00017873,2]
[358008504,1744653039542,-500.0,0.00017873,2]
[358008506,1744653039555,-500.0,0.00017873,2]
[358008507,1744653039567,-500.0,0.00017873,2]
[358008508,1744653039580,-500.0,0.00017873,2]
[358008509,1744653039593,-500.0,0.00017873,2]
[358008510,1744653039606,-500.0,0.00017873,2]
[358008511,1744653039618,-500.0,0.00017873,2]
[358008512,1744653039630,-500.0,0.00017873,2]
[358008513,1744653039642,-500.0,0.00017873,2]
[358008514,1744653039654,-500.0,0.00017873,2]
[358008515,1744653039664,-500.0,0.00017873,2]
[358008516,1744653039675,-500.0,0.00017873,2]
[358008517,1744653039687,-500.0,0.00017873,2]
[358008518,1744653039700,-500.0,0.00017873,2]
[358008519,1744653039712,-500.0,0.00017873,2]
[358008520,1744653039724,-500.0,0.00017873,2]
[358008521,1744653039736,-500.0,0.00017873,2]
[358008522,1744653039749,-500.0,0.00017873,2]
[358008523,1744653039760,-500.0,0.00017873,2]
[358008524,1744653039773,-500.0,0.00017873,2]
[358008525,1744653039787,-500.0,0.00017873,2]
[358008526,1744653039802,-500.0,0.00017873,2]
[358008527,1744653039815,-511.31050877,0.00017873,2]
[358008528,1744653039828,-500.0,0.00017873,2]
[358008529,1744653039840,-500.0,0.00017873,2]